Cogmind - Beta 12 @@@ ROGUE MODE // 2023.11.21 @ 11:44:48 Player: epb Result: Destroyed by G-47 Trooper with Particle Gun Performance ------------- Evolutions (2) 1000 Regions Visited (4) 800 Robots Destroyed (66) 330 Value Destroyed (1461) 1461 Prototype IDs (2) 40 Alien Tech Used (0) 0 Bonus (133) 133 TOTAL SCORE: 3764 Bonus ------- High Alert Combat Kills 133 Cogmind --------- Core Integrity 0/550 Matter 111/300 Energy 265/325 System Corruption 5% Temperature Cool (9) Movement Flying (360) Ox4 Location -8/Materials Parts ------- > --- POWER (2) -------- Improved Ion Engine Light Nuclear Core > --- PROPULSION (4) --- Flight Unit > --- UTILITY (3) ------ Improved Signal Interpreter > --- WEAPON (2) ------- Small Laser Gauss Rifle > --- INVENTORY (5) ---- Heavy Ion Engine Peak State ------------ > --- POWER ------------ Light Nuclear Core Light Nuclear Core > --- PROPULSION ------- Aluminum Leg Aluminum Leg Aluminum Leg Titanium Leg > --- UTILITY ---------- Small Storage Unit Advanced Weight Redist. System Hardlight Generator > --- WEAPON ----------- Heavy Assault Rifle Assault Cannon > --- INVENTORY -------- Improved Ion Engine Heavy Ion Engine Aluminum Leg Aluminum Leg EM Pulse Gun Small Laser Rocket Launcher Mini Grenade Launcher [Rating: 25] Favorites ----------- Power Light Nuclear Core Engine Heavy Ion Engine Power Core Light Nuclear Core Propulsion Aluminum Leg Leg Aluminum Leg Wheel Compact Wheel Flight Unit Flight Unit Utility Small Storage Unit Device Hardlight Generator Storage Small Storage Unit Processor Improved Signal Interpreter Weapon Particle Cannon Energy Gun Small Laser Energy Cannon Particle Cannon Ballistic Gun Heavy Assault Rifle Ballistic Cannon Assault Cannon Launcher Rocket Launcher Build | -11 -10 -10 -9 -8 ------- Run | Jun Mat Min Mat Mat Slots Evolved 4 | . . . 2 2 Power 1 | . . . . 1 Propulsion 2 | . . . 1 1 Utility 1 | . . . 1 . Weapon . | . . . . . Parts Attached 54 | 7 8 1 16 22 Power 15 | 1 1 . 3 10 Engine 8 | 1 . . 2 5 Core 7 | . 1 . 1 5 Reactor . | . . . . . Propulsion 16 | 3 2 . 6 5 Treads . | . . . . . Leg 11 | 1 . . 6 4 Wheel 4 | 2 2 . . . Hover . | . . . . . Flight 1 | . . . . 1 Utility 7 | 1 2 . 2 2 Device 4 | . 1 . 2 1 Storage 1 | 1 . . . . Processor 2 | . 1 . . 1 Hackware . | . . . . . Protection . | . . . . . Artifact . | . . . . . Weapon 16 | 2 3 1 5 5 Energy Gun 6 | 2 . . 2 2 Energy Cannon 2 | . 1 . 1 . Ballistic Gun 5 | . 2 1 1 1 Ballistic Cannon 1 | . . . . 1 Launcher 2 | . . . 1 1 Special Weapon . | . . . . . Impact Weapon . | . . . . . Slashing Weapon . | . . . . . Piercing Weapon . | . . . . . Special Melee Weapon . | . . . . . Unidentified Prototypes 2 | . . . 2 . Parts Lost 19 | . . 4 . 15 Power 4 | . . 1 . 3 Propulsion 7 | . . 2 . 5 Utility 4 | . . 1 . 3 Weapon 4 | . . . . 4 Highest Loss Streak 14 | . . 3 . 14 To Critical Strikes 1 | . . . . 1 Average Slot Usage (%) 83 | . 89 72 83 89 Engine 6 | . 5 . 8 11 Core 6 | . 8 9 2 5 Leg 15 | . . . 26 30 Wheel 10 | . 28 18 . . Device 9 | . 3 2 13 14 Storage 11 | . 14 14 11 7 Energy Gun 2 | . 4 . 6 1 Energy Cannon 8 | . 13 14 10 . Ballistic Gun 9 | . 10 14 4 8 Ballistic Cannon 2 | . . . . 6 Naked Turns 4 | . . . . 4 Heaviest Build 33 | 11 17 17 25 33 Greatest Support 53 | 32 32 20 36 53 Greatest Overweight (x) 5 | . . 3 . 5 Average Overweight (x) . | . . . . . Largest Inventory Capacity 8 | 8 8 8 8 8 Average Capacity 7 | 6 8 8 8 7 Most Carried 8 | 2 8 8 8 8 Average Carried 6 | 1 5 7 6 6 Final Capacity 8 | 8 8 8 8 5 Final Carried 8 | 2 6 8 8 1 Class Distribution -------------------- 61% | Mutant 38% | Scavenger-Mutant Dominant Class ---------------- Mutant | -10/Materials Scavenger-Mutant | -10/Mines Mutant | -9/Materials Scavenger-Mutant | -8/Materials Resources | -11 -10 -10 -9 -8 ----------- Run | Jun Mat Min Mat Mat Matter Collected 1140 | 232 127 104 167 510 Remotely . | . . . . . Salvage Created 1888 | . 200 229 573 886 Parts 113 | . 16 18 37 42 Haulers Intercepted . | . . . . . Recyclers Shooed 3 | . . 1 . 2 Parts Field Recycled . | . . . . . Retrieved Matter . | . . . . . Parts Self-Destructed . | . . . . . Prevented . | . . . . . Kills | -11 -10 -10 -9 -8 ------- Run | Jun Mat Min Mat Mat Combat Hostiles Destroyed 49 | . 5 10 13 21 Guns 19 | . 1 5 5 8 Cannons 24 | . 4 5 6 9 AOE 5 | . . . 1 4 Classes Destroyed 9 | . 4 1 3 1 Worker 7 | . 1 . 2 4 Builder 4 | . 1 . 1 2 Tunneler 3 | . . 2 1 . Recycler 3 | . . . 1 2 Swarmer 22 | . 2 9 5 6 Grunt 20 | . 3 1 5 11 Brawler 2 | . . . 1 1 Sentry 4 | . . . 2 2 Hunter 1 | . . . . 1 Best Kill Streak 8 | . 4 5 6 8 Combat Bots Only 5 | . 3 5 5 5 Max Kills in Single Turn 2 | . 1 1 2 2 Gunslinging . | . . . . . Exploded 2 | . . . 1 2 Melee . | . . . . . Uniques/NPCs Destroyed . | . . . . . Combat | -11 -10 -10 -9 -8 -------- Run | Jun Mat Min Mat Mat Damage Taken 2751 | . 185 347 619 1600 Core 766 | . 65 63 82 556 Absorbed by Shields 152 | . . . 4 148 Core Remaining (%) 75 | 100 . 48 79 . Volleys Fired 157 | . 18 36 33 70 Largest 2 | . 2 2 2 2 Hottest 113 | . 108 88 113 91 Shots Fired 299 | . 36 72 66 125 Gun 156 | . 18 36 33 69 Cannon 134 | . 18 36 31 49 Launcher 9 | . . . 2 7 Special . | . . . . . Kinetic 177 | . 17 36 14 110 Thermal 98 | . 19 36 38 5 Explosive 9 | . . . 2 7 Electromagnetic 15 | . . . 12 3 Robot Hit Streak 14 | . 7 5 14 13 Robot Miss Streak 5 | . 5 4 3 3 Penetration Max 1 | . . . . 1 Secondary Targets 1 | . . . . 1 Max Gunslinging Chain 1 | . . . . 1 Shots Hit Robots 175 | . 19 35 43 78 Core Hits 94 | . 8 14 23 49 Critical Kills 1 | . . . 1 . Critical Parts Destroyed . | . . . . . Critical Strikes 2 | . . . 1 1 Meltdown 1 | . . . 1 . Blast 1 | . . . . 1 Melee Attacks . | . . . . . Impact . | . . . . . Slashing . | . . . . . Piercing . | . . . . . Sneak Attacks . | . . . . . Combat Hostiles . | . . . . . Follow-up Attacks . | . . . . . Damage Inflicted 3981 | . 325 567 839 2250 Guns 1217 | . 99 176 310 632 Cannons 1971 | . 226 391 453 901 Explosions 793 | . . . 76 717 Melee . | . . . . . Ramming . | . . . . . Kinetic 1864 | . 99 176 112 1477 Thermal 1154 | . 226 391 506 31 Explosive 793 | . . . 76 717 Electromagnetic 170 | . . . 145 25 Impact . | . . . . . Slashing . | . . . . . Piercing . | . . . . . Highest Corruption 5 | . . . 1 5 Average Corruption 2 | . . . 1 4 Corruption Purged . | . . . . . Corruption Blocked . | . . . . . Effects 4 | . . . 1 3 Heat Flow Errors 2 | . . . . 2 Energy Discharges 2 | . . . 1 1 Overload Shots . | . . . . . Overflow Damage 102 | . . 3 1 98 Projectiles 39 | . . 3 1 35 Explosions 63 | . . . . 63 Melee . | . . . . . Knockbacks 13 | . . . . 13 Impact . | . . . . . Kinetic 10 | . . . . 10 Secondary 3 | . . . . 3 Self-Inflicted Damage 350 | . . . 41 309 Shots 8 | . . . 1 7 Rammed . | . . . . . Targets Rammed . | . . . . . Kicked . | . . . . . Crushed . | . . . . . Highest Temperature 372 | . 213 276 372 291 Average Temperature 95 | . 71 101 102 94 Received Heat Transfer 664 | . 72 45 195 352 Effects 4 | . . . 1 3 Shutdowns 1 | . . . 1 . Interference 3 | . . . . 3 Siege Activations . | . . . . . Robots Corrupted . | . . . . . Combat Hostiles . | . . . . . Parts Fried 1 | . . . 1 . Impact Corruptions . | . . . . . Robots Melted 1 | . . . 1 . Combat Hostiles 1 | . . . 1 . Parts Melted 4 | . . 2 2 . Heat Transferred 2111 | . 407 703 939 62 Parts Sabotaged . | . . . . . Parts Stolen . | . . . . . Parts Stripped . | . . . . . Power Chain Reactions . | . . . . . Missiles Intercepted . | . . . . . Alert | -11 -10 -10 -9 -8 ------- Run | Jun Mat Min Mat Mat Peak Influence 527 | . 202 338 527 522 Initial 137 | . . 78 53 137 Average 212 | . 82 224 242 283 Maximum Alert Level 2 | . 1 1 2 2 Low Security (%) 55 | 100 98 40 47 43 Level 1 29 | . 1 59 18 31 Level 2 14 | . . . 34 24 Level 3 . | . . . . . Level 4 . | . . . . . Level 5 . | . . . . . High Security . | . . . . . Max Security . | . . . . . Squads Dispatched 10 | . 2 . 1 7 Investigation 1 | . . . . 1 Extermination . | . . . . . Reinforcement 7 | . 2 . 1 4 Assault . | . . . . . Garrison 2 | . . . . 2 Intercept . | . . . . . Searches Triggered . | . . . . . Construction Impeded 1 | . . . . 1 Haulers Reinforced . | . . . . . Active Scanning Responses . | . . . . . Cargo Convoy Interrupts . | . . . . . Stealth | -11 -10 -10 -9 -8 --------- Run | Jun Mat Min Mat Mat Distress Signals 4 | . . . 2 2 Communications Jammed . | . . . . . Distress Signals . | . . . . . Times Spotted 78 | . 11 13 23 31 Peak Tracking Total 9 | . 3 3 9 8 Tactical Retreats 8 | . 1 3 2 2 Traps | -11 -10 -10 -9 -8 ------- Run | Jun Mat Min Mat Mat Traps Triggered 3 | . 1 . 1 1 Indirectly . | . . . . . Trap Hack Attempts . | . . . . . Triggered . | . . . . . Disarmed . | . . . . . Reprogrammed . | . . . . . Reused . | . . . . . Traps Extracted . | . . . . . Installed . | . . . . . Triggered . | . . . . . Machines | -11 -10 -10 -9 -8 ---------- Run | Jun Mat Min Mat Mat Machines Disabled 1 | . 1 . . . Max in Single Turn 1 | . 1 . . . Machines Repaired . | . . . . . Machines Sabotaged . | . . . . . Overloaded Fab Kills . | . . . . . Hacking | -11 -10 -10 -9 -8 --------- Run | Jun Mat Min Mat Mat Machines Accessed 3 | . . . . 3 Terminals 3 | . . . . 3 Fabricators . | . . . . . Repair Stations . | . . . . . Recycling Units . | . . . . . Scanalyzers . | . . . . . Garrison Access . | . . . . . Total Hacks 8 | . . . . 8 Successful 5 | . . . . 5 Failed 3 | . . . . 3 Catastrophic . | . . . . . Database Lockouts . | . . . . . Manual . | . . . . . Terminals 8 | . . . . 8 Fabricators . | . . . . . Repair Stations . | . . . . . Recycling Units . | . . . . . Scanalyzers . | . . . . . Garrison Access . | . . . . . Terminal Hacks 5 | . . . . 5 Record 1 | . . . . 1 Branch Access Points 1 | . . . . 1 Reinforcement Status 1 | . . . . 1 Hauler Manifests 1 | . . . . 1 Registered Components 1 | . . . . 1 Fabricator Hacks . | . . . . . Repair Station Hacks . | . . . . . Recycling Unit Hacks . | . . . . . Scanalyzer . | . . . . . Garrison Access Hacks . | . . . . . Unauthorized Hacks . | . . . . . Terminals . | . . . . . Fabricators . | . . . . . Repair Stations . | . . . . . Recycling Units . | . . . . . Scanalyzers . | . . . . . Garrison Access . | . . . . . Data Cores Recovered . | . . . . . Used . | . . . . . Hacking Detections 2 | . . . . 2 Full Trace Events . | . . . . . Feedback Events . | . . . . . Feedback Blocked . | . . . . . Robot Schematics Acquired . | . . . . . Robots Built . | . . . . . Authchips . | . . . . . Time . | . . . . . Total Robot Build Rating . | . . . . . Part Schematics Acquired . | . . . . . Parts Built . | . . . . . Authchips . | . . . . . Time . | . . . . . Total Part Build Rating . | . . . . . Parts Repaired . | . . . . . Time . | . . . . . Parts Recycled . | . . . . . Recycled Matter . | . . . . . Retrieved Matter . | . . . . . Retrieved Components . | . . . . . Parts Scanalyzed . | . . . . . Part Schematics Acquired . | . . . . . Parts Damaged . | . . . . . Bothacking | -11 -10 -10 -9 -8 ------------ Run | Jun Mat Min Mat Mat Used RIF Installer . | . . . . . Robots Hacked . | . . . . . Non-combat . | . . . . . Combat . | . . . . . Robot Hacks Applied . | . . . . . Relay Couplers Released . | . . . . . Fabnet Peak Effective % . | . . . . . Robots Rewired . | . . . . . Allies Hacked . | . . . . . Hacks Repelled . | . . . . . Allies | -11 -10 -10 -9 -8 -------- Run | Jun Mat Min Mat Mat Total Allies . | . . . . . Largest Group . | . . . . . Highest-Rated Group . | . . . . . Highest-Rated Ally . | . . . . . Total Orders . | . . . . . Ally Attacks . | . . . . . Total Damage . | . . . . . Kills . | . . . . . Allies Corrupted . | . . . . . Allies Melted . | . . . . . Intel | -11 -10 -10 -9 -8 ------- Run | Jun Mat Min Mat Mat Robot Analysis Total . | . . . . . Derelict Logs Recovered 2 | . . 2 . . Drone Launches . | . . . . . Drone Recoveries . | . . . . . Exploration | -11 -10 -10 -9 -8 ------------- Run | Jun Mat Min Mat Mat Turns Passed 2088 | 89 377 532 404 686 Spaces Moved 1213 | 78 296 381 219 239 Core 96 | 3 . 80 . 13 Treads . | . . . . . Legs 437 | . . . 219 218 Wheels 672 | 75 296 301 . . Hover . | . . . . . Flight 8 | . . . . 8 Fastest Speed 50 | 50 80 80 120 50 Average Speed 110 | 98 97 105 120 132 Slowest Speed 360 | 100 100 200 120 360 Overloaded Moves . | . . . . . Propulsion Burnouts . | . . . . . Robots Hopped . | . . . . . Cave-ins Triggered . | . . . . . Exploration Rate (%) 37 | 4 53 86 24 21 Regions Visited 4 Branch Regions 1 Pre-discovered Areas . | . . . . . Known Exits Taken . | . . . . . Unknown Exits Taken 4 | 1 1 1 1 . Scrap Searched 1 | . . 1 . . Spaces Dug . | . . . . . Terrain Destroyed 43 | . . . 19 24 Melee . | . . . . . Projectile 4 | . . . . 4 AOE 39 | . . . 19 20 Terrain Rammed . | . . . . . Walls Destroyed . | . . . . . Machines Disabled . | . . . . . Actions | -11 -10 -10 -9 -8 --------- Run | Jun Mat Min Mat Mat Total 1652 | 87 348 445 293 479 Wait 192 | . 12 24 12 144 Move 1209 | 77 295 380 218 239 Hop . | . . . . . Pick Up 20 | 2 8 2 7 1 Fast Attach 17 | 7 2 . 3 5 Attach 13 | . 1 . 3 9 Detach . | . . . . . Swap 24 | . 5 1 10 8 Drop 19 | 1 7 1 7 3 Fire 157 | . 18 36 33 70 Melee . | . . . . . Ram . | . . . . . Kick . | . . . . . Crush . | . . . . . Escape Stasis . | . . . . . Rewire 1 | . . 1 . . Trap . | . . . . . Miscellaneous . | . . . . . Route ------- -11/Junkyard -10/Materials (discovered 2 exits: [*Mat] / [*Min]) -10/Mines (discovered 2 exits: [*Mat x2]) -9/Materials (discovered 3 exits: *Mat / [*Min] / Sto) -8/Materials History --------- Turn | Location | Event 8 | -11/Junkyard | Discovered new exit (range 16) 90 | -11/Junkyard | Entered Materials 277 | -10/Materials | Discovered new exit (range 15) 300 | -10/Materials | Build established: Mutant 459 | -10/Materials | Discovered new exit (range 9) 467 | -10/Materials | Entered Mines 692 | -10/Mines | Discovered new exit (range 15) 769 | -10/Mines | Received a Rocket Launcher from a helpful Derelict 809 | -10/Mines | Core integrity fell below 50% 867 | -10/Mines | Lost 3 parts (1p2n) 942 | -10/Mines | Learned Materials emergency access door positions 980 | -10/Mines | Discovered new exit (range 5) 999 | -10/Mines | Entered Materials 999 | -9/Materials | Evolved 2 slots: Propulsion x1, Utility x1 1000 | -9/Materials | Identified exit to Storage 1284 | -9/Materials | Discovered new exit (range 12) 1392 | -9/Materials | Discovered new exit (range 9) 1403 | -9/Materials | Entered another Materials area 1403 | -8/Materials | Evolved 2 slots: Power x1, Propulsion x1 1931 | -8/Materials | Garrison activated, responded to threat 1997 | -8/Materials | Core integrity fell below 50% 2005 | -8/Materials | Core integrity fell below 20% 2037 | -8/Materials | Lost 14 parts (3p4n3u4w) 2089 | -8/Materials | Destroyed by G-47 Trooper with Particle Gun Last Messages --------------- 02045_ Switching to secondary target: S-10 Pest. 02045_ Slug penetrates S-10 Pest. 02048_ S-10 Pest destroyed. 02048_ K-01 Serf destroyed. 02051_ K-01 Serf collects debris. 02054_ R-06 Scavenger collects Wheel. 02054_ K-01 Serf collects debris. 02056_ K-01 Serf cleans the Fusion Modulator. 02059_ K-01 Serf collects debris. 02059_ R-06 Scavenger collects Structural Scanner. 02060_ K-01 Serf collects debris. 02060_ Acquired Flight Unit. 02062_ System corrupted: Heat flow error (+247). 02062_ K-01 Serf collects debris. 02063_ The unstable cave ceiling collapses. 02063_ K-01 Serf collects debris. 02068_ Acquired 10 matter. 02070_ U-05 Engineer builds a Wall. 02070_ K-01 Serf collects debris. 02086_ System corrupted: Energy discharge (-123). Map ----- +----------------------------------------------------+ | ?????????????????????????????????????????????????? | | ?????????????????????????????????????????????????? | | ?????????????????????????????????????????????????? | | ????????????????????!????????????????????????????? | | ?????????????????????????????????????????????????? | | ?????????????????????????????????????????????????? | | ?????????????????????????????????????????????????? | | ?????????????????????????????????????????????????? | | ??????????????????? ? ?????????????????????????? | | ??????????????????? ?????????????????????????? | | ??????????????????? T ?????????????????????????? | | ??????????????????? ?????????????????????????? | | ??????????????????? ! ?????????????????????????? | | ???????????????????# #?????????????????????????? | | ???????????????????# #?????????????????????????? | | ???????????????????# #?????????????????????????? | | ???????????????????+ #?????????????????????????? | | ???????????????????# #?????????????????????????? | | ???????????????????# #?????????????????????????? | | ???????????????????# ########??????????????????? | | ???????????????????# # #??????????????????? | | ???????????????????# # """ #??????????????????? | | ???????????????????# # """ #??????????????????? | | ?????????########### g """ #??????????????????? | | ????????? ! # #[ #??????????????????? | | ????????? # #%@ #??????????????????? | | ?????????????"""" # #######????????????????? | | ???????????""""""" # #????????????????? | | ???????# """ """ #k """ #????????????????? | | ###????# # """ #????????????????? | | # ########+#####% ! #????????????????? | | u #% #????????????????? | | = % %[ % #* """ #????????????????? | | ! ! % k " #????????????????? | | ???? ########+###### ## """ #????????????????? | | ?????????# %! != ##### #????????????????? | | ?????????# """ """ #???##########????????????????? | | ?????????# """=""" #?????????????????????????????? | | ?????????# """ """ #?????????????????????????????? | | ????###### #?????????????????????????????? | | ????# + "T" #?????????????????????????????? | | ????# #### """ #???????????????????????????!?? | | ?#### #??# #?????????????????????????????? | | ?# ##?###+#######?????????????????????????????? | | ?# ##/###????????????????????????????????????????? | | ?# # !#????#???????????????????????????????????? | | ?# # T =#### #???????????????????????????????????? | | ?# # +% #???????????????????????????????????? | | ?# # #=##+#???????????????????????????????????? | | ?# # ] #%#??????????????????????????????????????? | +----------------------------------------------------+ Best States ------------- Heat Dissipation 31 Energy Generation 27 Energy Capacity 445 Matter Stores 300 Matter Capacity 300 Sight Range 16 Terrain Scan Range 14 Terrain Scan Density 10 Additional Mass Support 9 Evasion (%) 55 Targeting Accuracy 5 Item Schematics ----------------- None Robot Schematics ------------------ None Fabricated ------------ Nothing Alien Tech Used ----------------- None Achievements -------------- None Challenges ------------ None Game ------ Seed IonFrostWheel Manual? 0 Play Time 00:25:00 Cumulative 17.2 hours Start 2023.11.21 @ 11:23:27 End 2023.11.21 @ 11:44:48 Sessions 1 Manual Loads 0 Difficulty Rogue Special Mode None Game No. 46 Rogue 46 Adventurer 0 Explorer 0 Win Type - Total 0 Types 0/0/0/0/0/0/0/0/0 Lore% 11 Gallery% 23 Achievement% 17 Wizard Run 0 Options --------- ASCII 0 Keyboard 0 Movement Vi Keybinds 0 Fullscreen 2 Font 14/TerminusBold Map View 72x54 Tactical HUD 1 Map Filters NONE Filters NONE Steam X RUN: 1b5cc859-a878-4140-9dee-f5fd832ea46b